[Event "Titled Tuesday Blitz October 5 2021"]
[White "Visakh N R"]
[Black "Isajevsky, Anton"]
[WhiteFideId "25012223"]
[BlackFideId "4142500"]
[WhiteElo "2454"]
[BlackElo "2510"]
[Result "1-0"]
[Round "04"]
[TimeControl "180+1"]
[Date "2021.10.05"]
[WhiteClock "0:01:54"]
[BlackClock "0:00:22"]

1. d4 {[%clk 0:03:00]}  d5 {[%clk 0:02:59]} 2. c4 {[%clk 0:03:01]}  e6 {[%clk 0:02:59]} 3. Nc3 {[%clk 0:03:00]}  Be7 {[%clk 0:02:59]} 4. Nf3 {[%clk 0:03:00]}  Nf6 {[%clk 0:02:59]} 5. Bg5 {[%clk 0:03:00]}  h6 {[%clk 0:02:58]} 6. Bh4 {[%clk 0:02:59]}  O-O {[%clk 0:02:58]} 7. e3 {[%clk 0:02:59]}  b6 {[%clk 0:02:58]} 8. Rc1 {[%clk 0:02:59]}  Bb7 {[%clk 0:02:53]} 9. cxd5 {[%clk 0:02:59]}  Nxd5 {[%clk 0:02:52]} 10. Bxe7 {[%clk 0:02:58]}  Qxe7 {[%clk 0:02:51]} 11. Nxd5 {[%clk 0:02:54]}  exd5 {[%clk 0:02:49]} 12. Bd3 {[%clk 0:02:54]}  c5 {[%clk 0:02:49]} 13. O-O {[%clk 0:02:54]}  Nd7 {[%clk 0:02:29]} 14. Bf5 {[%clk 0:02:52]}  Nf6 {[%clk 0:02:27]} 15. Ne5 {[%clk 0:02:52]}  c4 {[%clk 0:01:52]} 16. f4 {[%clk 0:02:24]}  b5 {[%clk 0:01:47]} 17. Qf3 {[%clk 0:02:19]}  Ne4 {[%clk 0:01:39]} 18. Bxe4 {[%clk 0:02:17]}  dxe4 {[%clk 0:01:39]} 19. Qf2 {[%clk 0:02:18]}  Qd6 {[%clk 0:01:14]} 20. g4 {[%clk 0:02:15]}  Bd5 {[%clk 0:01:08]} 21. f5 {[%clk 0:02:08]}  f6 {[%clk 0:01:07]} 22. Ng6 {[%clk 0:02:07]}  Rfc8 {[%clk 0:01:06]} 23. Nf4 {[%clk 0:01:58]}  b4 {[%clk 0:01:05]} 24. Qg3 {[%clk 0:01:57]}  Rc6 {[%clk 0:00:58]} 25. h4 {[%clk 0:01:56]}  c3 {[%clk 0:00:46]} 26. b3 {[%clk 0:01:56]}  a5 {[%clk 0:00:45]} 27. g5 {[%clk 0:01:54]}  fxg5 {[%clk 0:00:26]} 28. hxg5 {[%clk 0:01:55]}  hxg5 {[%clk 0:00:27]} 29. Qxg5 {[%clk 0:01:55]}  a4 {[%clk 0:00:22]} 30. f6 {[%clk 0:01:54]} 1-0


[Site "https://www.chess.com"]

[Event "Titled Tuesday Blitz October 5 2021"]
[White "Vokhidov, Shamsiddin"]
[Black "Mogirzan, Matei-Valeriu"]
[WhiteFideId "14204223"]
[BlackFideId "1257455"]
[WhiteElo "2616"]
[BlackElo "1733"]
[Result "1-0"]
[Round "04"]
[TimeControl "180+1"]
[Date "2021.10.05"]
[WhiteClock "0:01:34"]
[BlackClock "0:00:04"]

1. e4 {[%clk 0:03:00]}  e5 {[%clk 0:02:59]} 2. Nf3 {[%clk 0:03:00]}  Nf6 {[%clk 0:02:59]} 3. Nc3 {[%clk 0:03:01]}  Bc5 {[%clk 0:02:59]} 4. Nxe5 {[%clk 0:03:01]}  Nc6 {[%clk 0:02:59]} 5. Nxc6 {[%clk 0:03:00]}  dxc6 {[%clk 0:03:00]} 6. Be2 {[%clk 0:03:00]}  h5 {[%clk 0:03:00]} 7. h3 {[%clk 0:02:59]}  Qd4 {[%clk 0:02:58]} 8. Rf1 {[%clk 0:02:58]}  Nxe4 {[%clk 0:02:44]} 9. Bf3 {[%clk 0:02:57]}  Nxc3 {[%clk 0:02:24]} 10. bxc3 {[%clk 0:02:55]}  Qe5+ {[%clk 0:02:21]} 11. Qe2 {[%clk 0:02:54]}  Qxe2+ {[%clk 0:02:20]} 12. Kxe2 {[%clk 0:02:55]}  Be6 {[%clk 0:02:18]} 13. d3 {[%clk 0:02:53]}  O-O-O {[%clk 0:02:14]} 14. Be3 {[%clk 0:02:52]}  Bxe3 {[%clk 0:02:06]} 15. fxe3 {[%clk 0:02:53]}  g5 {[%clk 0:02:04]} 16. Be4 {[%clk 0:02:46]}  Bd5 {[%clk 0:01:58]} 17. Bxd5 {[%clk 0:02:45]}  cxd5 {[%clk 0:01:58]} 18. Rxf7 {[%clk 0:02:45]}  Rd6 {[%clk 0:01:45]} 19. Raf1 {[%clk 0:02:42]}  Ra6 {[%clk 0:01:44]} 20. R1f5 {[%clk 0:02:40]}  Rxa2 {[%clk 0:01:41]} 21. Kd2 {[%clk 0:02:40]}  g4 {[%clk 0:01:38]} 22. hxg4 {[%clk 0:02:27]}  hxg4 {[%clk 0:01:33]} 23. Rxd5 {[%clk 0:02:28]}  Rd8 {[%clk 0:00:59]} 24. Rg5 {[%clk 0:02:20]}  a5 {[%clk 0:00:24]} 25. Rgg7 {[%clk 0:02:17]}  Rb2 {[%clk 0:00:19]} 26. Rxc7+ {[%clk 0:02:15]}  Kb8 {[%clk 0:00:19]} 27. Rc5 {[%clk 0:02:09]}  b6 {[%clk 0:00:14]} 28. Rcc7 {[%clk 0:02:08]}  Rf8 {[%clk 0:00:12]} 29. d4 {[%clk 0:01:49]}  Rf2+ {[%clk 0:00:03]} 30. Kd3 {[%clk 0:01:49]}  Rbxc2 {[%clk 0:00:02]} 31. Rb7+ {[%clk 0:01:47]}  Ka8 {[%clk 0:00:01]} 32. Rxb6 {[%clk 0:01:46]}  Rxg2 {[%clk 0:00:01]} 33. Rh6 {[%clk 0:01:43]}  Rb2 {[%clk 0:00:01]} 34. Ra6+ {[%clk 0:01:38]}  Kb8 {[%clk 0:00:01]} 35. Rxa5 {[%clk 0:01:39]}  Rgd2+ {[%clk 0:00:01]} 36. Ke4 {[%clk 0:01:39]}  Rb7 {[%clk 0:00:02]} 37. Rxb7+ {[%clk 0:01:37]}  Kxb7 {[%clk 0:00:02]} 38. Rg5 {[%clk 0:01:38]}  Rg2 {[%clk 0:00:02]} 39. c4 {[%clk 0:01:38]}  g3 {[%clk 0:00:01]} 40. c5 {[%clk 0:01:38]}  Rg1 {[%clk 0:00:01]} 41. Ke5 {[%clk 0:01:37]}  Kc6 {[%clk 0:00:01]} 42. e4 {[%clk 0:01:37]}  Kb5 {[%clk 0:00:01]} 43. Rg6 {[%clk 0:01:38]}  Kb4 {[%clk 0:00:01]} 44. c6 {[%clk 0:01:38]}  Kb3 {[%clk 0:00:02]} 45. c7 {[%clk 0:01:37]}  Rc1 {[%clk 0:00:02]} 46. Kd6 {[%clk 0:01:37]}  Kb2 {[%clk 0:00:03]} 47. Rxg3 {[%clk 0:01:36]}  Rc2 {[%clk 0:00:03]} 48. Rg8 {[%clk 0:01:36]}  Rc3 {[%clk 0:00:03]} 49. c8=Q {[%clk 0:01:36]}  Rb3 {[%clk 0:00:04]} 50. Rg2+ {[%clk 0:01:34]}  Ka1 {[%clk 0:00:04]} 51. Qc1+ {[%clk 0:01:33]}  Rb1 {[%clk 0:00:04]} 52. Qa3# {[%clk 0:01:34]} 1-0


[Site "https://www.chess.com"]

[Event "Titled Tuesday Blitz October 5 2021"]
[White "Yakubboev, Nodirbek"]
[Black "Mickiewicz, Piotr"]
[WhiteFideId "14203987"]
[BlackFideId "1114891"]
[WhiteElo "2464"]
[BlackElo "2251"]
[Result "1-0"]
[Round "04"]
[TimeControl "180+1"]
[Date "2021.10.05"]
[WhiteClock "0:00:28"]
[BlackClock "0:00:13"]

1. d4 {[%clk 0:03:00]}  g6 {[%clk 0:02:30]} 2. e4 {[%clk 0:02:58]}  Bg7 {[%clk 0:02:31]} 3. Nc3 {[%clk 0:02:59]}  d6 {[%clk 0:02:30]} 4. f4 {[%clk 0:02:58]}  c5 {[%clk 0:02:30]} 5. dxc5 {[%clk 0:02:50]}  Bxc3+ {[%clk 0:02:28]} 6. bxc3 {[%clk 0:02:50]}  dxc5 {[%clk 0:02:29]} 7. Qxd8+ {[%clk 0:02:46]}  Kxd8 {[%clk 0:02:30]} 8. Nf3 {[%clk 0:02:46]}  Nc6 {[%clk 0:02:24]} 9. Be3 {[%clk 0:02:32]}  b6 {[%clk 0:02:23]} 10. Bc4 {[%clk 0:02:24]}  e6 {[%clk 0:01:35]} 11. O-O-O {[%clk 0:02:19]}  Kc7 {[%clk 0:01:23]} 12. Ng5 {[%clk 0:01:34]}  Nh6 {[%clk 0:01:21]} 13. h3 {[%clk 0:01:31]}  Na5 {[%clk 0:01:14]} 14. Bb5 {[%clk 0:01:24]}  f6 {[%clk 0:01:12]} 15. Nf3 {[%clk 0:01:21]}  Nf7 {[%clk 0:01:11]} 16. e5 {[%clk 0:01:07]}  a6 {[%clk 0:01:09]} 17. Be2 {[%clk 0:00:57]}  f5 {[%clk 0:01:09]} 18. g4 {[%clk 0:00:56]}  Bb7 {[%clk 0:01:05]} 19. gxf5 {[%clk 0:00:54]}  gxf5 {[%clk 0:01:05]} 20. Rhg1 {[%clk 0:00:54]}  Rhg8 {[%clk 0:01:04]} 21. Bf2 {[%clk 0:00:50]}  Bd5 {[%clk 0:00:46]} 22. Nd2 {[%clk 0:00:49]}  Rg6 {[%clk 0:00:42]} 23. Bh5 {[%clk 0:00:47]}  Rag8 {[%clk 0:00:32]} 24. Bxg6 {[%clk 0:00:45]}  hxg6 {[%clk 0:00:32]} 25. h4 {[%clk 0:00:39]}  Kc6 {[%clk 0:00:26]} 26. h5 {[%clk 0:00:32]}  g5 {[%clk 0:00:21]} 27. fxg5 {[%clk 0:00:32]}  Rxg5 {[%clk 0:00:21]} 28. Rxg5 {[%clk 0:00:32]}  Nxg5 {[%clk 0:00:22]} 29. Rg1 {[%clk 0:00:28]}  Nf7 {[%clk 0:00:15]} 30. Rg7 {[%clk 0:00:28]}  Nh6 {[%clk 0:00:13]} 31. Rg6 {[%clk 0:00:28]}  Ng4 {[%clk 0:00:13]} 32. h6 {[%clk 0:00:28]} 1-0


[Site "https://www.chess.com"]

[Event "Titled Tuesday Blitz October 5 2021"]
[White "Abdusattorov, Nodirbek"]
[Black "Mekhitarian, Krikor Sevag"]
[WhiteFideId "14204118"]
[BlackFideId "2107660"]
[WhiteElo "2690"]
[BlackElo "2598"]
[Result "1-0"]
[Round "05"]
[TimeControl "180+1"]
[Date "2021.10.05"]
[WhiteClock "0:00:43"]
[BlackClock "0:00:03"]

1. c4 {[%clk 0:03:00]}  c5 {[%clk 0:02:49]} 2. g3 {[%clk 0:03:00]}  Nc6 {[%clk 0:02:49]} 3. Bg2 {[%clk 0:03:00]}  g6 {[%clk 0:02:49]} 4. Nc3 {[%clk 0:03:00]}  Bg7 {[%clk 0:02:50]} 5. Nf3 {[%clk 0:03:01]}  d6 {[%clk 0:02:48]} 6. O-O {[%clk 0:03:01]}  e5 {[%clk 0:02:45]} 7. a3 {[%clk 0:02:56]}  a5 {[%clk 0:02:43]} 8. d3 {[%clk 0:02:52]}  Nge7 {[%clk 0:02:43]} 9. Ne1 {[%clk 0:02:51]}  Be6 {[%clk 0:02:42]} 10. Bg5 {[%clk 0:02:49]}  f6 {[%clk 0:02:42]} 11. Be3 {[%clk 0:02:49]}  b6 {[%clk 0:02:37]} 12. Nc2 {[%clk 0:02:48]}  d5 {[%clk 0:01:58]} 13. cxd5 {[%clk 0:02:49]}  Nxd5 {[%clk 0:01:59]} 14. Bxd5 {[%clk 0:02:49]}  Bxd5 {[%clk 0:01:59]} 15. b4 {[%clk 0:02:50]}  axb4 {[%clk 0:01:55]} 16. axb4 {[%clk 0:02:49]}  Rxa1 {[%clk 0:01:55]} 17. Qxa1 {[%clk 0:02:50]}  cxb4 {[%clk 0:01:55]} 18. Nxd5 {[%clk 0:02:29]}  Qxd5 {[%clk 0:01:53]} 19. Qa8+ {[%clk 0:02:29]}  Kf7 {[%clk 0:01:53]} 20. Qb7+ {[%clk 0:02:29]}  Ne7 {[%clk 0:01:54]} 21. Qxb6 {[%clk 0:02:29]}  b3 {[%clk 0:01:46]} 22. Na1 {[%clk 0:02:24]}  Rc8 {[%clk 0:01:06]} 23. Nxb3 {[%clk 0:02:16]}  Rc2 {[%clk 0:01:05]} 24. Nd2 {[%clk 0:02:08]}  h5 {[%clk 0:00:42]} 25. Qa7 {[%clk 0:01:37]}  Ra2 {[%clk 0:00:27]} 26. Qc7 {[%clk 0:01:34]}  h4 {[%clk 0:00:25]} 27. Ne4 {[%clk 0:01:31]}  hxg3 {[%clk 0:00:18]} 28. Nc3 {[%clk 0:01:12]}  gxh2+ {[%clk 0:00:14]} 29. Kxh2 {[%clk 0:01:13]}  Qe6 {[%clk 0:00:09]} 30. Nxa2 {[%clk 0:01:12]}  Qxa2 {[%clk 0:00:10]} 31. Bc5 {[%clk 0:01:09]}  Qe6 {[%clk 0:00:11]} 32. Qxe7+ {[%clk 0:01:09]}  Qxe7 {[%clk 0:00:11]} 33. Bxe7 {[%clk 0:01:10]}  Kxe7 {[%clk 0:00:12]} 34. Rb1 {[%clk 0:01:07]}  f5 {[%clk 0:00:13]} 35. Rb6 {[%clk 0:01:05]}  Kf7 {[%clk 0:00:12]} 36. e3 {[%clk 0:01:05]}  Bf8 {[%clk 0:00:11]} 37. Kg3 {[%clk 0:01:04]}  Bc5 {[%clk 0:00:11]} 38. Rc6 {[%clk 0:01:02]}  Ba3 {[%clk 0:00:11]} 39. e4 {[%clk 0:00:57]}  Be7 {[%clk 0:00:09]} 40. Kf3 {[%clk 0:00:48]}  Bg5 {[%clk 0:00:08]} 41. Ke2 {[%clk 0:00:45]}  Bf6 {[%clk 0:00:08]} 42. Kd2 {[%clk 0:00:44]}  Bh4 {[%clk 0:00:04]} 43. f3 {[%clk 0:00:44]}  Bf2 {[%clk 0:00:04]} 44. Kc3 {[%clk 0:00:43]}  Bd4+ {[%clk 0:00:05]} 45. Kc4 {[%clk 0:00:43]}  Kg7 {[%clk 0:00:02]} 46. Kd5 {[%clk 0:00:43]}  fxe4 {[%clk 0:00:03]} 47. dxe4 {[%clk 0:00:42]}  Kh6 {[%clk 0:00:03]} 48. f4 {[%clk 0:00:43]} 1-0


[Site "https://www.chess.com"]

[Event "Titled Tuesday Blitz October 5 2021"]
[White "Acosta, Pablo Ismael"]
[Black "Tabatabaei, M. Amin"]
[WhiteFideId "124311"]
[BlackFideId "12521213"]
[WhiteElo "2318"]
[BlackElo "2555"]
[Result "0-1"]
[Round "05"]
[TimeControl "180+1"]
[Date "2021.10.05"]
[WhiteClock "0:00:02"]
[BlackClock "0:00:19"]

1. d4 {[%clk 0:03:00]}  c6 {[%clk 0:03:00]} 2. c4 {[%clk 0:03:00]}  d5 {[%clk 0:02:42]} 3. Nc3 {[%clk 0:02:59]}  Nf6 {[%clk 0:02:37]} 4. Nf3 {[%clk 0:02:58]}  e6 {[%clk 0:02:36]} 5. cxd5 {[%clk 0:02:57]}  exd5 {[%clk 0:02:33]} 6. Bg5 {[%clk 0:02:55]}  h6 {[%clk 0:02:32]} 7. Bh4 {[%clk 0:02:54]}  Qb6 {[%clk 0:02:32]} 8. Qb3 {[%clk 0:02:47]}  Qxb3 {[%clk 0:02:32]} 9. axb3 {[%clk 0:02:48]}  Nbd7 {[%clk 0:02:32]} 10. Nd2 {[%clk 0:02:45]}  g5 {[%clk 0:02:31]} 11. Bg3 {[%clk 0:02:44]}  Nh5 {[%clk 0:02:32]} 12. Bc7 {[%clk 0:02:42]}  Ng7 {[%clk 0:02:33]} 13. e3 {[%clk 0:02:41]}  Ne6 {[%clk 0:02:33]} 14. Bg3 {[%clk 0:02:41]}  Nf6 {[%clk 0:02:32]} 15. Be2 {[%clk 0:02:38]}  Bg7 {[%clk 0:02:33]} 16. b4 {[%clk 0:02:34]}  Bd7 {[%clk 0:02:32]} 17. b5 {[%clk 0:02:34]}  c5 {[%clk 0:02:32]} 18. dxc5 {[%clk 0:02:29]}  Nxc5 {[%clk 0:02:33]} 19. Be5 {[%clk 0:02:29]}  Be6 {[%clk 0:02:34]} 20. b6 {[%clk 0:02:19]}  a6 {[%clk 0:02:32]} 21. Nb5 {[%clk 0:02:17]}  O-O {[%clk 0:02:30]} 22. Nc7 {[%clk 0:02:13]}  Rad8 {[%clk 0:02:26]} 23. O-O {[%clk 0:02:04]}  Nfe4 {[%clk 0:02:26]} 24. Bxg7 {[%clk 0:01:56]}  Kxg7 {[%clk 0:02:27]} 25. Nf3 {[%clk 0:01:53]}  Rd6 {[%clk 0:02:20]} 26. b4 {[%clk 0:01:51]}  Nd7 {[%clk 0:02:17]} 27. b5 {[%clk 0:01:48]}  Nc3 {[%clk 0:02:09]} 28. Bd3 {[%clk 0:01:47]}  axb5 {[%clk 0:02:02]} 29. Bxb5 {[%clk 0:01:31]}  Nxb5 {[%clk 0:01:55]} 30. Nxb5 {[%clk 0:01:31]}  Rxb6 {[%clk 0:01:56]} 31. Nfd4 {[%clk 0:01:31]}  Nf6 {[%clk 0:01:54]} 32. Rfc1 {[%clk 0:01:31]}  Bd7 {[%clk 0:01:54]} 33. Ra5 {[%clk 0:01:22]}  Ra6 {[%clk 0:01:45]} 34. Rca1 {[%clk 0:01:15]}  Rfa8 {[%clk 0:01:44]} 35. Rxa6 {[%clk 0:01:15]}  Rxa6 {[%clk 0:01:45]} 36. Rc1 {[%clk 0:01:14]}  Bxb5 {[%clk 0:01:32]} 37. Nxb5 {[%clk 0:01:14]}  Ra2 {[%clk 0:01:33]} 38. f3 {[%clk 0:01:13]}  Rb2 {[%clk 0:01:33]} 39. Nd4 {[%clk 0:01:12]}  h5 {[%clk 0:01:29]} 40. Rc7 {[%clk 0:01:12]}  b5 {[%clk 0:01:28]} 41. Nf5+ {[%clk 0:01:06]}  Kg6 {[%clk 0:01:28]} 42. Ne7+ {[%clk 0:01:07]}  Kh7 {[%clk 0:01:21]} 43. Nf5 {[%clk 0:01:04]}  b4 {[%clk 0:01:20]} 44. Nd6 {[%clk 0:00:56]}  b3 {[%clk 0:01:20]} 45. Nxf7 {[%clk 0:00:56]}  Rc2 {[%clk 0:01:17]} 46. Rb7 {[%clk 0:00:54]}  b2 {[%clk 0:01:16]} 47. Ne5+ {[%clk 0:00:44]}  Kg8 {[%clk 0:01:11]} 48. Rb8+ {[%clk 0:00:41]}  Kg7 {[%clk 0:01:10]} 49. Rb7+ {[%clk 0:00:42]}  Kf8 {[%clk 0:01:09]} 50. h4 {[%clk 0:00:31]}  Rc1+ {[%clk 0:01:02]} 51. Kh2 {[%clk 0:00:31]}  b1=Q {[%clk 0:01:03]} 52. Rf7+ {[%clk 0:00:27]}  Ke8 {[%clk 0:01:02]} 53. hxg5 {[%clk 0:00:24]}  Rh1+ {[%clk 0:01:01]} 54. Kg3 {[%clk 0:00:24]}  Qe1+ {[%clk 0:01:01]} 55. Kf4 {[%clk 0:00:24]}  Rh4+ {[%clk 0:00:46]} 56. Kf5 {[%clk 0:00:22]}  Qxe3 {[%clk 0:00:46]} 57. Rxf6 {[%clk 0:00:06]}  Rf4+ {[%clk 0:00:40]} 58. Ke6 {[%clk 0:00:07]}  Rxf6+ {[%clk 0:00:40]} 59. gxf6 {[%clk 0:00:07]}  d4 {[%clk 0:00:36]} 60. f7+ {[%clk 0:00:03]}  Kf8 {[%clk 0:00:36]} 61. f4 {[%clk 0:00:04]}  d3 {[%clk 0:00:33]} 62. g3 {[%clk 0:00:04]}  d2 {[%clk 0:00:32]} 63. Kf6 {[%clk 0:00:03]}  Qd4 {[%clk 0:00:25]} 64. Ke6 {[%clk 0:00:02]}  Kg7 {[%clk 0:00:19]} 0-1


[Site "https://www.chess.com"]

[Event "Titled Tuesday Blitz October 5 2021"]
[White "Avila Pavas, Santiago"]
[Black "Rozhkov, Viacheslav"]
[WhiteFideId "4437128"]
[BlackFideId "4181484"]
[WhiteElo "2292"]
[BlackElo "2324"]
[Result "1-0"]
[Round "05"]
[TimeControl "180+1"]
[Date "2021.10.05"]
[WhiteClock "0:01:05"]
[BlackClock "0:00:59"]

1. d4 {[%clk 0:02:55]}  d5 {[%clk 0:02:59]} 2. c4 {[%clk 0:02:54]}  dxc4 {[%clk 0:03:00]} 3. Nf3 {[%clk 0:02:53]}  a6 {[%clk 0:02:57]} 4. a4 {[%clk 0:02:51]}  Nf6 {[%clk 0:02:44]} 5. Nc3 {[%clk 0:02:49]}  Nc6 {[%clk 0:02:43]} 6. e3 {[%clk 0:02:44]}  Na5 {[%clk 0:02:43]} 7. Ne5 {[%clk 0:02:42]}  e6 {[%clk 0:02:44]} 8. Nxc4 {[%clk 0:02:42]}  Nxc4 {[%clk 0:02:44]} 9. Bxc4 {[%clk 0:02:43]}  c5 {[%clk 0:02:45]} 10. O-O {[%clk 0:02:40]}  Bd6 {[%clk 0:02:42]} 11. dxc5 {[%clk 0:02:28]}  Bxc5 {[%clk 0:02:42]} 12. Qxd8+ {[%clk 0:02:29]}  Kxd8 {[%clk 0:02:42]} 13. e4 {[%clk 0:02:28]}  Ke7 {[%clk 0:02:39]} 14. e5 {[%clk 0:02:14]}  Ng4 {[%clk 0:02:27]} 15. Bg5+ {[%clk 0:02:13]}  f6 {[%clk 0:02:26]} 16. exf6+ {[%clk 0:02:11]}  gxf6 {[%clk 0:02:27]} 17. Bh4 {[%clk 0:02:09]}  Rg8 {[%clk 0:02:10]} 18. Rfe1 {[%clk 0:02:02]}  Kf7 {[%clk 0:01:41]} 19. Ne4 {[%clk 0:01:48]}  Be7 {[%clk 0:01:40]} 20. Bg3 {[%clk 0:01:40]}  Nh6 {[%clk 0:01:05]} 21. Bd6 {[%clk 0:01:05]}  Nf5 {[%clk 0:00:59]} 22. Bxe7 {[%clk 0:01:05]}  Kxe7 {[%clk 0:00:59]} 23. Nc5 {[%clk 0:01:06]}  e5 {[%clk 0:00:59]} 24. Bxg8 {[%clk 0:01:05]} 1-0


[Site "https://www.chess.com"]

[Event "Titled Tuesday Blitz October 5 2021"]
[White "Avramidou, Anastasia"]
[Black "Csonka, Balazs"]
[WhiteFideId "4239873"]
[BlackFideId "742910"]
[WhiteElo "2183"]
[BlackElo "2404"]
[Result "1/2-1/2"]
[Round "05"]
[TimeControl "180+1"]
[Date "2021.10.05"]
[WhiteClock "0:00:16"]
[BlackClock "0:00:12"]

1. Nf3 {[%clk 0:02:57]}  Nf6 {[%clk 0:02:58]} 2. g3 {[%clk 0:02:49]}  g6 {[%clk 0:02:58]} 3. Bg2 {[%clk 0:02:50]}  Bg7 {[%clk 0:02:59]} 4. O-O {[%clk 0:02:49]}  O-O {[%clk 0:02:59]} 5. Nc3 {[%clk 0:02:47]}  c5 {[%clk 0:02:47]} 6. e4 {[%clk 0:02:37]}  Nc6 {[%clk 0:02:45]} 7. Qe2 {[%clk 0:02:23]}  d6 {[%clk 0:02:41]} 8. h3 {[%clk 0:02:22]}  Rb8 {[%clk 0:02:35]} 9. a4 {[%clk 0:02:20]}  a6 {[%clk 0:02:34]} 10. d3 {[%clk 0:02:18]}  b5 {[%clk 0:02:33]} 11. axb5 {[%clk 0:02:19]}  axb5 {[%clk 0:02:34]} 12. Bg5 {[%clk 0:02:18]}  b4 {[%clk 0:02:32]} 13. Nd1 {[%clk 0:02:14]}  Be6 {[%clk 0:02:27]} 14. Nh2 {[%clk 0:01:42]}  Qc8 {[%clk 0:01:52]} 15. h4 {[%clk 0:01:36]}  Nd4 {[%clk 0:01:41]} 16. Qd2 {[%clk 0:01:18]}  c4 {[%clk 0:01:40]} 17. dxc4 {[%clk 0:01:16]}  Qxc4 {[%clk 0:01:40]} 18. Ne3 {[%clk 0:01:16]}  Qc5 {[%clk 0:01:30]} 19. Rfd1 {[%clk 0:01:12]}  Nc6 {[%clk 0:01:18]} 20. Nd5 {[%clk 0:01:12]}  Bxd5 {[%clk 0:01:15]} 21. exd5 {[%clk 0:01:13]}  Ne5 {[%clk 0:01:16]} 22. Be3 {[%clk 0:01:13]}  Qc8 {[%clk 0:01:06]} 23. b3 {[%clk 0:01:11]}  Nfg4 {[%clk 0:00:59]} 24. Nxg4 {[%clk 0:01:06]}  Nxg4 {[%clk 0:00:59]} 25. Bd4 {[%clk 0:01:07]}  Bxd4 {[%clk 0:00:50]} 26. Qxd4 {[%clk 0:01:08]}  h5 {[%clk 0:00:51]} 27. Rd2 {[%clk 0:01:05]}  Qc5 {[%clk 0:00:44]} 28. Qxc5 {[%clk 0:01:05]}  dxc5 {[%clk 0:00:44]} 29. Ra5 {[%clk 0:01:03]}  Rfc8 {[%clk 0:00:42]} 30. Bh3 {[%clk 0:01:04]}  Rb6 {[%clk 0:00:38]} 31. Bxg4 {[%clk 0:00:58]}  hxg4 {[%clk 0:00:39]} 32. Ra7 {[%clk 0:00:52]}  e6 {[%clk 0:00:25]} 33. dxe6 {[%clk 0:00:51]}  Rxe6 {[%clk 0:00:24]} 34. Rdd7 {[%clk 0:00:51]}  Rf6 {[%clk 0:00:23]} 35. Kg2 {[%clk 0:00:44]}  c4 {[%clk 0:00:19]} 36. bxc4 {[%clk 0:00:15]}  Rxc4 {[%clk 0:00:18]} 37. Rd2 {[%clk 0:00:16]}  Kg7 {[%clk 0:00:14]} 38. Rb7 {[%clk 0:00:16]}  Rfc6 {[%clk 0:00:13]} 39. Rb5 {[%clk 0:00:15]}  Rxc2 {[%clk 0:00:12]} 40. Rxc2 {[%clk 0:00:15]}  Rxc2 {[%clk 0:00:13]} 41. Rxb4 {[%clk 0:00:16]}  f5 {[%clk 0:00:13]} 42. Rf4 {[%clk 0:00:16]}  Kf6 {[%clk 0:00:13]} 43. Rb4 {[%clk 0:00:16]}  Rc6 {[%clk 0:00:12]} 44. Ra4 {[%clk 0:00:16]} 1/2-1/2


[Site "https://www.chess.com"]

[Event "Titled Tuesday Blitz October 5 2021"]
[White "Babazada, Khazar"]
[Black "Glavina, Pablo"]
[WhiteFideId "13413554"]
[BlackFideId "100234"]
[WhiteElo "2302"]
[BlackElo "2369"]
[Result "1-0"]
[Round "05"]
[TimeControl "180+1"]
[Date "2021.10.05"]
[WhiteClock "0:00:10"]
[BlackClock "0:00:01"]

1. e4 {[%clk 0:03:00]}  e5 {[%clk 0:02:57]} 2. Nc3 {[%clk 0:03:00]}  Nf6 {[%clk 0:02:56]} 3. Nf3 {[%clk 0:03:00]}  Nc6 {[%clk 0:02:56]} 4. Be2 {[%clk 0:03:00]}  Bb4 {[%clk 0:02:41]} 5. O-O {[%clk 0:02:51]}  Bxc3 {[%clk 0:02:19]} 6. dxc3 {[%clk 0:02:51]}  Nxe4 {[%clk 0:02:19]} 7. Nxe5 {[%clk 0:02:48]}  O-O {[%clk 0:02:09]} 8. Nxc6 {[%clk 0:02:44]}  dxc6 {[%clk 0:02:09]} 9. Bf4 {[%clk 0:02:41]}  Qf6 {[%clk 0:01:56]} 10. Bxc7 {[%clk 0:02:38]}  Bf5 {[%clk 0:01:56]} 11. Bd3 {[%clk 0:02:36]}  Rfe8 {[%clk 0:01:51]} 12. Bf4 {[%clk 0:02:34]}  Nxc3 {[%clk 0:01:39]} 13. bxc3 {[%clk 0:02:26]}  Bxd3 {[%clk 0:01:39]} 14. cxd3 {[%clk 0:02:24]}  Qxf4 {[%clk 0:01:39]} 15. Rb1 {[%clk 0:02:22]}  Re7 {[%clk 0:01:35]} 16. Rb4 {[%clk 0:02:15]}  Qf5 {[%clk 0:01:24]} 17. Rd4 {[%clk 0:02:09]}  Rae8 {[%clk 0:01:23]} 18. g3 {[%clk 0:02:09]}  g6 {[%clk 0:01:13]} 19. Qb3 {[%clk 0:02:05]}  Qf3 {[%clk 0:01:08]} 20. Qb1 {[%clk 0:01:58]}  h5 {[%clk 0:00:55]} 21. Rf4 {[%clk 0:01:57]}  Qd5 {[%clk 0:00:54]} 22. c4 {[%clk 0:01:55]}  Qc5 {[%clk 0:00:48]} 23. Qb2 {[%clk 0:01:09]}  Qe5 {[%clk 0:00:40]} 24. Qb3 {[%clk 0:01:06]}  Rd8 {[%clk 0:00:31]} 25. Qa3 {[%clk 0:00:59]}  Qd6 {[%clk 0:00:25]} 26. Qxa7 {[%clk 0:00:55]}  Qxd3 {[%clk 0:00:25]} 27. h4 {[%clk 0:00:47]}  Rde8 {[%clk 0:00:25]} 28. Qa5 {[%clk 0:00:33]}  Re5 {[%clk 0:00:20]} 29. Qb4 {[%clk 0:00:29]}  R8e7 {[%clk 0:00:11]} 30. Kg2 {[%clk 0:00:26]}  Kg7 {[%clk 0:00:11]} 31. Qb2 {[%clk 0:00:24]}  Qe2 {[%clk 0:00:06]} 32. Qa1 {[%clk 0:00:23]}  Kg8 {[%clk 0:00:05]} 33. Rd1 {[%clk 0:00:20]}  Re8 {[%clk 0:00:02]} 34. Rd7 {[%clk 0:00:20]}  R5e7 {[%clk 0:00:01]} 35. Qd4 {[%clk 0:00:18]}  Qe6 {[%clk 0:00:01]} 36. Rd6 {[%clk 0:00:15]}  Qe5 {[%clk 0:00:01]} 37. Qd3 {[%clk 0:00:14]}  Qe2 {[%clk 0:00:01]} 38. Qc3 {[%clk 0:00:10]} 1-0


[Site "https://www.chess.com"]